{"text_format":"1","workbook":"xlsx","n_sheets":5,"sheets":["sheet1","sheet2","سجل الحضور","ورقة1","قوائم"],"not_rendered":{"charts":0,"images":37,"macros":1,"external_links":0,"defined_names":5,"comments":0,"pivot_tables":0},"unopened":[],"bounds":{"document_bytes":16777216,"sheet_cells":100000,"rows_first":2000,"rows_last":500,"rows_between":2000,"halvings":0,"cell_chars":16384,"cell_head_chars":4096},"cells_cut":0,"cells_raw":0,"read":"whole","date_system":"1900"}

{"sheet":"sheet1","index":0,"n_rows":11,"n_cols":11,"rows_kept":11,"cut":false,"hidden":true,"merged":[[8,8,8,9],[10,8,10,9]]}
[]
[]
[]
[]
[]
[]
[]
[]
[null,null,null,null,null,null,null,null,null,null,"Username"]
[]
[null,null,null,null,null,null,null,null,null,null,"TimeLogin"]

{"sheet":"sheet2","index":1,"n_rows":4,"n_cols":13,"rows_kept":4,"cut":false,"hidden":true,"merged":[]}
[]
[]
[]
[null,null,null,null,null," لسنة 2022",null,null,null,null,null,null," لسنة 2022"]

{"sheet":"سجل الحضور","index":2,"n_rows":24,"n_cols":15,"rows_kept":24,"cut":false,"hidden":false,"merged":[[0,1,0,13],[1,1,3,1],[1,5,3,5],[1,4,3,4],[1,6,3,6],[2,9,3,9],[2,10,3,10],[2,13,3,13],[2,11,2,12],[1,9,1,13],[1,7,3,7],[25,10,25,12],[26,10,26,12],[1,2,1,3],[1,8,3,8],[2,2,3,2],[2,3,3,3]]}
[null,"كشف حضور وانصراف الموظفين  "]
[null,"ر.ت",null,null,"الإدارة / القسم","يتبع لـــــــ","اعتماد","اسم المصرف","الحالة","الحضور والانصراف",null,null,null,null,5]
[null,null,"رقم الوظيفة المسلسل","إسم الموظف",null,null,null,null,null,"الحضور","الغياب","الإجازات",null,"الأيام المستحق عليها مرتب"]
[null,null,null,null,null,null,null,null,null,null,null,"راحة طبية","إجازة سنوية"]
[null,{"$f":"ROW(B1)","v":1},11001,"موظف 1","المدير العام",null,null,"مصرف الإسلامي الليبي وكالة الأكاديمية","ندب",{"$f":"31-K5-L5-M5","v":31},0,0,0,{"$f":"31-K5","v":31}]
[null,{"$f":"ROW(B2)","v":2},11002,"موظف 2","مساعد المدير العام","المدير العام","مساعد المدير العام","مصرف الإسلامي الليبي وكالة الأكاديمية",null,{"$f":"31-K6-L6-M6","v":31},0,0,0,{"$f":"31-K6","v":31}]
[null,3,11003,"موظف 3","الشؤون الطبية","المدير العام","المدير المساعد للخدمات الطبية","مصرف الجمهورية (أحمد الشريف)",null,31,0,0,0,31]
[null,4,11004,"موظف 4","الشؤون القانونية","المدير العام","مساعد المدير العام","مصرف الجمهوية مصراته الميدان",null,31,0,0,0,31]
[null,5,11005,"موظف 5","الشؤون القانونية","الشؤون القانونية","مساعد المدير العام","مصرف الأسلام الليبي الخمس",null,31,0,0,0,31]
[null,6,11006,"موظف 6","الشؤون القانونية","الشؤون القانونية","مساعد المدير العام","مصرف الجمهوية مصراته الميدان",null,31,0,0,0,31]
[null,7,11007,"موظف 7","مراجع داخلي","المدير العام","مساعد المدير العام","مصرف التجاري الوطني مصراتة",null,31,0,0,0,31]
[null,8,11008,"موظف 8","القسم المالي ","القسم المالي ","مساعد المدير العام","مصرف الإسلامي الليبي مصراتة",null,31,0,0,0,31]
[null,9,11009,"موظف 9","الأمن والسلامة","الأمن والسلامة","مساعد المدير العام","مصرف التجاري الوطني مصراتة",null,31,0,0,0,31]
[null,10,11010,"موظف 10","القسم المالي ","المالية","مساعد المدير العام","مصرف الوحدة زليتن",null,31,0,0,0,31]
[null,11,11011,"موظف 11","تقنية المعلومات IT","تقنية المعلومات","مساعد المدير العام","مصرف الصحاري قصر أحمد",null,31,0,0,0,31]
[null,12,11012,"موظف 12","تقنية المعلومات IT","مساعد المدير العام","مساعد المدير العام","مصرف الصحاري قصر أحمد",null,31,0,0,0,31]
[null,13,11013,"موظف 13","تقنية المعلومات IT","تقنية المعلومات","مساعد المدير العام","مصرف الواحة مصراتة",null,31,0,0,0,31]
[null,14,11014,"موظف 14","تقنية المعلومات IT","تقنية المعلومات IT","مساعد المدير العام","مصرف الإسلامي الليبي مصراتة",null,31,0,0,0,31]
[null,15,11015,"موظف 15","تقنية المعلومات IT","تقنية المعلومات","مساعد المدير العام","مصرف الصحاري قصر أحمد",null,31,0,0,0,31]
[null,16,11016,"موظف 16","قسم الإحصاء","الشؤون الطبية","المدير المساعد للخدمات الطبية","مصرف الجمهوية مصراته الميدان",null,31,0,0,0,31]
[null,17,11017,"موظف 17","مكتب التعاون والإعلام والتوعية","مساعد المدير العام","مساعد المدير العام","مصرف الجمهورية (أحمد الشريف)",null,31,0,0,0,31]
[null,18,11018,"موظف 18","مكتب التعاون والإعلام والتوعية","مكتب التعاون والإعلام","مساعد المدير العام","مصرف الجمهورية قوز التيك",null,31,0,0,0,31]
[null,19,11019,"موظف 19","مكتب التعاون والإعلام والتوعية","مكتب التعاون والإعلام","مساعد المدير العام","مصرف الإسلامي الليبي مصراتة",null,31,0,0,0,31]
[null,20,null,"موظف 20","مكتب التعاون والإعلام والتوعية","مكتب التعاون والإعلام","مساعد المدير العام","مصرف الواحة مصراتة",null,31,0,0,0,31]

{"sheet":"ورقة1","index":3,"n_rows":24,"n_cols":37,"rows_kept":24,"cut":false,"hidden":false,"merged":[[3,2,4,2],[3,3,4,3],[3,34,4,34],[3,35,4,35],[3,36,4,36]]}
[]
[]
[]
[null,null,"الرقم الوظيفي","اسم الموظف",1,2,3,4,5,6,7,8,9,10,11,12,13,14,15,16,17,18,19,20,21,22,23,24,25,26,27,28,29,30,"الإجمالي","ساعات Free","الصافي"]
[null,null,null,null,"السبت","الأحد","الإثنين","الثلاثاء","الأربعاء","الخميس","الجمعة","السبت","الأحد","الإثنين","الثلاثاء","الأربعاء","الخميس","الجمعة","السبت","الأحد","الإثنين","الثلاثاء","الأربعاء","الخميس","الجمعة","السبت","الأحد","الإثنين","الثلاثاء","الأربعاء","الخميس","الجمعة","السبت","الأحد"]
[null,null,{"$f":"'سجل الحضور'!C5","v":11001},{"$f":"'سجل الحضور'!D5","v":"موظف 1"},null,null,null,null,null,null,null,null,null,null,null,null,null,null,null,null,null,null,null,null,null,null,null,null,null,null,null,null,null,null,{"$f":"SUM(E6:AH6)","v":"00:00:00"},"03:00:00"]
[null,null,{"$f":"'سجل الحضور'!C6","v":11002},{"$f":"'سجل الحضور'!D6","v":"موظف 2"},null,null,null,null,null,null,null,null,null,null,null,null,null,null,null,null,null,null,null,null,null,null,null,null,null,null,null,null,null,null,{"$f":"SUM(E7:AH7)","v":"00:00:00"},"03:00:00"]
[null,null,{"$f":"'سجل الحضور'!C7","v":11003},{"$f":"'سجل الحضور'!D7","v":"موظف 3"},null,null,null,null,null,null,null,null,null,null,null,null,null,null,null,null,null,null,null,null,null,null,null,null,null,null,null,null,null,null,{"$f":"SUM(E8:AH8)","v":"00:00:00"},"03:00:00"]
[null,null,{"$f":"'سجل الحضور'!C8","v":11004},{"$f":"'سجل الحضور'!D8","v":"موظف 4"},null,null,null,null,null,null,null,null,"00:10:00",null,null,null,null,null,null,null,null,null,null,null,null,null,null,null,null,null,null,null,null,null,{"$f":"SUM(E9:AH9)","v":"00:10:00"},"03:00:00"]
[null,null,{"$f":"'سجل الحضور'!C9","v":11005},{"$f":"'سجل الحضور'!D9","v":"موظف 5"},null,null,null,null,null,null,null,null,null,null,null,null,null,null,null,null,null,null,null,null,null,null,null,null,null,null,null,null,null,null,{"$f":"SUM(E10:AH10)","v":"00:00:00"},"03:00:00"]
[null,null,{"$f":"'سجل الحضور'!C10","v":11006},{"$f":"'سجل الحضور'!D10","v":"موظف 6"},null,null,null,null,null,null,null,null,null,null,null,null,null,null,null,null,null,null,null,null,null,null,null,null,null,null,null,null,null,null,{"$f":"SUM(E11:AH11)","v":"00:00:00"},"03:00:00"]
[null,null,{"$f":"'سجل الحضور'!C11","v":11007},{"$f":"'سجل الحضور'!D11","v":"موظف 7"},null,"01:00:00",null,null,null,null,null,null,null,null,null,null,null,null,null,null,null,null,null,null,null,null,null,null,null,null,null,null,null,null,{"$f":"SUM(E12:AH12)","v":"01:00:00"},"03:00:00"]
[null,null,{"$f":"'سجل الحضور'!C12","v":11008},{"$f":"'سجل الحضور'!D12","v":"موظف 8"},null,null,null,null,null,null,null,null,null,null,null,null,null,null,null,null,null,null,null,null,null,null,null,null,null,null,null,null,null,null,{"$f":"SUM(E13:AH13)","v":"00:00:00"},"03:00:00"]
[null,null,{"$f":"'سجل الحضور'!C13","v":11009},{"$f":"'سجل الحضور'!D13","v":"موظف 9"},null,null,null,null,null,null,null,null,null,null,null,null,null,null,null,null,null,null,null,null,null,null,null,null,null,null,null,null,null,null,{"$f":"SUM(E14:AH14)","v":"00:00:00"},"03:00:00"]
[null,null,{"$f":"'سجل الحضور'!C14","v":11010},{"$f":"'سجل الحضور'!D14","v":"موظف 10"},null,null,null,null,null,null,null,null,null,null,null,null,null,null,null,null,null,null,null,null,null,null,null,null,null,null,null,null,null,null,{"$f":"SUM(E15:AH15)","v":"00:00:00"},"03:00:00"]
[null,null,{"$f":"'سجل الحضور'!C15","v":11011},{"$f":"'سجل الحضور'!D15","v":"موظف 11"},null,null,null,null,null,null,null,null,null,null,null,null,null,null,null,null,null,null,null,null,null,null,null,null,null,null,null,null,null,null,"00:00:00","03:00:00"]
[null,null,{"$f":"'سجل الحضور'!C16","v":11012},{"$f":"'سجل الحضور'!D16","v":"موظف 12"},null,null,null,null,null,null,null,null,null,null,null,null,null,null,null,null,null,null,null,null,null,null,null,null,null,null,null,null,null,null,"00:00:00","03:00:00"]
[null,null,{"$f":"'سجل الحضور'!C17","v":11013},{"$f":"'سجل الحضور'!D17","v":"موظف 13"},null,null,null,null,null,null,null,null,null,null,null,null,null,null,null,null,null,null,null,null,null,null,null,null,null,null,null,null,null,null,"00:00:00","03:00:00"]
[null,null,{"$f":"'سجل الحضور'!C18","v":11014},{"$f":"'سجل الحضور'!D18","v":"موظف 14"},null,null,null,null,null,null,null,null,null,null,null,null,null,null,null,null,null,null,null,null,null,null,null,null,null,null,null,null,null,null,"00:00:00","03:00:00"]
[null,null,{"$f":"'سجل الحضور'!C19","v":11015},{"$f":"'سجل الحضور'!D19","v":"موظف 15"},null,null,null,null,null,null,null,null,null,null,null,null,null,null,null,null,null,null,null,null,null,null,null,null,null,null,null,null,null,null,"00:00:00","03:00:00"]
[null,null,{"$f":"'سجل الحضور'!C20","v":11016},{"$f":"'سجل الحضور'!D20","v":"موظف 16"},null,null,null,null,null,null,null,null,null,null,null,null,null,null,null,null,null,null,null,null,null,null,null,null,null,null,null,null,null,null,"00:00:00","03:00:00"]
[null,null,{"$f":"'سجل الحضور'!C21","v":11017},{"$f":"'سجل الحضور'!D21","v":"موظف 17"},null,null,null,null,null,null,null,null,null,null,null,null,null,null,null,null,null,null,null,null,null,null,null,null,null,null,null,null,null,null,"00:00:00","03:00:00"]
[null,null,{"$f":"'سجل الحضور'!C22","v":11018},{"$f":"'سجل الحضور'!D22","v":"موظف 18"},null,null,null,null,null,null,null,null,null,null,null,null,null,null,null,null,null,null,null,null,null,null,null,null,null,null,null,null,null,null,"00:00:00","03:00:00"]
[null,null,{"$f":"'سجل الحضور'!C23","v":11019},{"$f":"'سجل الحضور'!D23","v":"موظف 19"},null,null,null,null,null,null,null,null,null,null,null,null,null,null,null,null,null,null,null,null,null,null,null,null,null,null,null,null,null,null,"00:00:00","03:00:00"]

{"sheet":"قوائم","index":4,"n_rows":39,"n_cols":6,"rows_kept":39,"cut":false,"hidden":false,"merged":[]}
[]
[]
[]
[]
[null,"القسم / الإدارة","اعتماد","المصارف","الحالة","المجموعات"]
[]
[null,"المدير العام","مساعد المدير العام","مصرف 1","نقل",1]
[null,"مساعد المدير العام","المدير المساعد للخدمات الطبية","مصرف 2","ندب",2]
[null,"مراجع داخلي",null,"مصرف 3","موظف",3]
[null,"الشؤون القانونية",null,"مصرف 4","متقاعد",4]
[null,"الشؤون الإدارية والمالية",null,"مصرف 5","استقالة",5]
[null,"الشؤون الإدارية ",null,"مصرف 6","انقطاع",6]
[null,"قسم المحفوظات",null,"مصرف 7","مكرر في الهيكل التنظيمي",7]
[null,"القسم المالي ",null,"مصرف 8"]
[null,"شؤون الموظفين ",null,"مصرف 9"]
[null,"قسم النزلاء",null,"مصرف 10"]
[null,"تقنية المعلومات IT",null,"مصرف 11"]
[null,"مكتب التعاون والإعلام والتوعية",null,"مصرف 12"]
[null,"الشؤون الفنية والهندسية",null,"مصرف 13"]
[null,"الأمن والسلامة",null,"مصرف 14"]
[null,"قسم المخازن",null,"مصرف 15"]
[null,"قسم الصيانـــــة",null,"مصرف 16"]
[null,"قسم الحركــــــة",null,"مصرف 17"]
[null,"قسم العلاقات العامة",null,"مصرف 18"]
[null,"نشاط رياضي",null,"مصرف 19"]
[null," الوعاظ ",null,"مصرف 20"]
[null,"الطبية الإدارية",null,"مصرف 21"]
[null,"طبيب مشرف",null,"مصرف 22"]
[null,"طبيب مناوب",null,"مصرف 23"]
[null,"الشؤون الطبية",null,"مصرف 24"]
[null,"قسم الإحصاء",null,"مصرف 25"]
[null,"الصيدلية والمعدات الطبية",null,"مصرف 26"]
[null,"طبيب أسنان",null,"مصرف 27"]
[null,"الصحة النفسية"]
[null,"فني مختبر"]
[null,"تمريض مناوب"]
[null,"مشرف تمريض"]
[null,"تمريض أسنان"]
[null,"فني أشعة"]